[Event "Titled Tuesday Blitz November 01 Late 2022"]
[White "Sabar, Ethmane Daouda"]
[Black "Sanchez, Robert"]
[WhiteFideId "19600097"]
[BlackFideId "2034360"]
[WhiteElo "1950"]
[BlackElo "2403"]
[Result "1-0"]
[Round "05"]
[TimeControl "180+1"]
[Date "2022.11.02"]
[WhiteClock "0:00:13"]
[BlackClock "0:00:17"]

1. b3 {[%clk 0:03:00]}  e6 {[%clk 0:02:57]} 2. Bb2 {[%clk 0:03:01]}  d5 {[%clk 0:02:57]} 3. e3 {[%clk 0:03:01]}  Nf6 {[%clk 0:02:58]} 4. f4 {[%clk 0:03:01]}  Be7 {[%clk 0:02:57]} 5. Nf3 {[%clk 0:03:02]}  O-O {[%clk 0:02:57]} 6. Be2 {[%clk 0:03:00]}  c5 {[%clk 0:02:57]} 7. O-O {[%clk 0:02:59]}  Nc6 {[%clk 0:02:58]} 8. d3 {[%clk 0:02:55]}  Ng4 {[%clk 0:02:55]} 9. Qd2 {[%clk 0:02:51]}  d4 {[%clk 0:02:51]} 10. exd4 {[%clk 0:02:43]}  cxd4 {[%clk 0:02:49]} 11. h3 {[%clk 0:02:25]}  Ne3 {[%clk 0:02:47]} 12. Rc1 {[%clk 0:02:25]}  Bc5 {[%clk 0:02:35]} 13. a3 {[%clk 0:02:22]}  a5 {[%clk 0:02:33]} 14. Qe1 {[%clk 0:01:58]}  Qd6 {[%clk 0:02:18]} 15. Qh4 {[%clk 0:01:51]}  Nf5 {[%clk 0:02:12]} 16. Qg5 {[%clk 0:01:38]}  f6 {[%clk 0:01:53]} 17. Qg4 {[%clk 0:01:32]}  e5 {[%clk 0:01:50]} 18. fxe5 {[%clk 0:01:31]}  Nxe5 {[%clk 0:01:35]} 19. Nxe5 {[%clk 0:01:30]}  fxe5 {[%clk 0:01:26]} 20. Bf3 {[%clk 0:01:21]}  Be6 {[%clk 0:01:18]} 21. Nd2 {[%clk 0:01:16]}  Ne3 {[%clk 0:01:11]} 22. Qg3 {[%clk 0:01:11]}  Qc7 {[%clk 0:01:06]} 23. Ne4 {[%clk 0:01:07]}  Be7 {[%clk 0:01:03]} 24. Bxd4 {[%clk 0:01:06]}  Nf5 {[%clk 0:00:56]} 25. Qxe5 {[%clk 0:01:00]}  Qd7 {[%clk 0:00:44]} 26. Bb2 {[%clk 0:00:52]}  Bd5 {[%clk 0:00:39]} 27. Qxd5+ {[%clk 0:00:35]}  Qxd5 {[%clk 0:00:37]} 28. Nf6+ {[%clk 0:00:36]}  Bxf6 {[%clk 0:00:36]} 29. Bxd5+ {[%clk 0:00:36]}  Kh8 {[%clk 0:00:37]} 30. Bxf6 {[%clk 0:00:36]}  Rxf6 {[%clk 0:00:38]} 31. Rf1 {[%clk 0:00:33]}  Raf8 {[%clk 0:00:33]} 32. c4 {[%clk 0:00:23]}  Nd4 {[%clk 0:00:28]} 33. Rxf6 {[%clk 0:00:24]}  Rxf6 {[%clk 0:00:28]} 34. c5 {[%clk 0:00:21]}  h5 {[%clk 0:00:27]} 35. b4 {[%clk 0:00:20]}  a4 {[%clk 0:00:26]} 36. Re1 {[%clk 0:00:18]}  h4 {[%clk 0:00:24]} 37. Re4 {[%clk 0:00:17]}  Rf4 {[%clk 0:00:15]} 38. Rxf4 {[%clk 0:00:15]}  Ne2+ {[%clk 0:00:15]} 39. Kf1 {[%clk 0:00:13]}  Nxf4 {[%clk 0:00:16]} 40. Bxb7 {[%clk 0:00:13]}  Nxd3 {[%clk 0:00:17]} 41. c6 {[%clk 0:00:13]} 1-0


[Site "https://www.chess.com"]

[Event "Titled Tuesday Blitz November 01 Late 2022"]
[White "Sai Krishna G V"]
[Black "Ladan, Nicholas"]
[WhiteFideId "5028280"]
[BlackFideId "30918855"]
[WhiteElo "2359"]
[BlackElo "2167"]
[Result "1-0"]
[Round "05"]
[TimeControl "180+1"]
[Date "2022.11.02"]
[WhiteClock "0:01:30"]
[BlackClock "0:00:21"]

1. Nf3 {[%clk 0:03:00]}  d5 {[%clk 0:03:00]} 2. g3 {[%clk 0:03:01]}  Bg4 {[%clk 0:02:57]} 3. Bg2 {[%clk 0:03:00]}  Nd7 {[%clk 0:02:56]} 4. O-O {[%clk 0:02:58]}  e5 {[%clk 0:02:55]} 5. d3 {[%clk 0:02:58]}  Bd6 {[%clk 0:02:54]} 6. h3 {[%clk 0:02:58]}  Bh5 {[%clk 0:02:54]} 7. e4 {[%clk 0:02:59]}  dxe4 {[%clk 0:02:53]} 8. dxe4 {[%clk 0:03:00]}  Ne7 {[%clk 0:02:53]} 9. Nbd2 {[%clk 0:02:55]}  O-O {[%clk 0:02:51]} 10. g4 {[%clk 0:02:55]}  Bg6 {[%clk 0:02:51]} 11. Nh4 {[%clk 0:02:55]}  Nc6 {[%clk 0:02:49]} 12. Nf5 {[%clk 0:02:54]}  Bxf5 {[%clk 0:02:45]} 13. exf5 {[%clk 0:02:55]}  Re8 {[%clk 0:02:40]} 14. Ne4 {[%clk 0:02:53]}  Nf6 {[%clk 0:02:38]} 15. Bg5 {[%clk 0:02:53]}  Be7 {[%clk 0:02:38]} 16. Bxf6 {[%clk 0:02:50]}  Bxf6 {[%clk 0:02:36]} 17. c3 {[%clk 0:02:38]}  Qxd1 {[%clk 0:02:26]} 18. Rfxd1 {[%clk 0:02:39]}  Rad8 {[%clk 0:02:26]} 19. Kf1 {[%clk 0:02:26]}  Be7 {[%clk 0:02:20]} 20. Ke2 {[%clk 0:02:20]}  Na5 {[%clk 0:02:15]} 21. Nd2 {[%clk 0:02:14]}  c5 {[%clk 0:01:51]} 22. a3 {[%clk 0:02:13]}  c4 {[%clk 0:01:46]} 23. Nf1 {[%clk 0:02:03]}  Bg5 {[%clk 0:01:39]} 24. Bd5 {[%clk 0:02:01]}  b5 {[%clk 0:01:32]} 25. Ng3 {[%clk 0:01:54]}  Kf8 {[%clk 0:01:31]} 26. Ne4 {[%clk 0:01:52]}  Bf4 {[%clk 0:01:30]} 27. a4 {[%clk 0:01:51]}  Nb3 {[%clk 0:01:22]} 28. Ra3 {[%clk 0:01:51]}  a6 {[%clk 0:01:11]} 29. axb5 {[%clk 0:01:48]}  axb5 {[%clk 0:01:12]} 30. Bc6 {[%clk 0:01:31]}  Rxd1 {[%clk 0:01:09]} 31. Kxd1 {[%clk 0:01:32]}  Rd8+ {[%clk 0:01:09]} 32. Ke2 {[%clk 0:01:32]}  Nc1+ {[%clk 0:01:06]} 33. Kf3 {[%clk 0:01:32]}  Rd3+ {[%clk 0:00:36]} 34. Kg2 {[%clk 0:01:32]}  b4 {[%clk 0:00:21]} 35. Ra8+ {[%clk 0:01:29]}  Ke7 {[%clk 0:00:21]} 36. Re8# {[%clk 0:01:30]} 1-0


[Site "https://www.chess.com"]

[Event "Titled Tuesday Blitz November 01 Late 2022"]
[White "Sanal, Vahap"]
[Black "Zakhartsov, Vladimir"]
[WhiteFideId "6300545"]
[BlackFideId "4145097"]
[WhiteElo "2574"]
[BlackElo "2492"]
[Result "1-0"]
[Round "05"]
[TimeControl "180+1"]
[Date "2022.11.01"]
[WhiteClock "0:00:05"]
[BlackClock "0:00:03"]

1. e4 {[%clk 0:03:00]}  c5 {[%clk 0:02:56]} 2. Nf3 {[%clk 0:03:00]}  Nc6 {[%clk 0:02:56]} 3. d4 {[%clk 0:02:57]}  cxd4 {[%clk 0:02:56]} 4. Nxd4 {[%clk 0:02:58]}  Nf6 {[%clk 0:02:56]} 5. Nc3 {[%clk 0:02:58]}  e6 {[%clk 0:02:55]} 6. Be2 {[%clk 0:02:54]}  Bb4 {[%clk 0:02:50]} 7. Nxc6 {[%clk 0:02:49]}  bxc6 {[%clk 0:02:50]} 8. Bd2 {[%clk 0:02:45]}  d5 {[%clk 0:02:47]} 9. O-O {[%clk 0:02:38]}  O-O {[%clk 0:02:28]} 10. Bd3 {[%clk 0:02:30]}  a5 {[%clk 0:02:24]} 11. a3 {[%clk 0:02:13]}  Bd6 {[%clk 0:02:22]} 12. Qe2 {[%clk 0:02:07]}  Qc7 {[%clk 0:02:15]} 13. h3 {[%clk 0:02:04]}  Rb8 {[%clk 0:02:12]} 14. Rab1 {[%clk 0:02:03]}  h6 {[%clk 0:02:08]} 15. Kh1 {[%clk 0:01:43]}  Bf4 {[%clk 0:02:07]} 16. Bxf4 {[%clk 0:01:40]}  Qxf4 {[%clk 0:02:07]} 17. g3 {[%clk 0:01:40]}  Qc7 {[%clk 0:02:03]} 18. Kh2 {[%clk 0:01:33]}  c5 {[%clk 0:01:55]} 19. b3 {[%clk 0:01:21]}  Bb7 {[%clk 0:01:53]} 20. e5 {[%clk 0:01:17]}  Nd7 {[%clk 0:01:50]} 21. f4 {[%clk 0:01:17]}  Bc6 {[%clk 0:01:40]} 22. Rbe1 {[%clk 0:01:17]}  Rbe8 {[%clk 0:01:40]} 23. a4 {[%clk 0:01:15]}  f6 {[%clk 0:01:39]} 24. Nb5 {[%clk 0:01:05]}  Qd8 {[%clk 0:01:25]} 25. Nd6 {[%clk 0:00:48]}  Re7 {[%clk 0:01:25]} 26. Qh5 {[%clk 0:00:46]}  c4 {[%clk 0:00:41]} 27. bxc4 {[%clk 0:00:46]}  dxc4 {[%clk 0:00:41]} 28. Bxc4 {[%clk 0:00:47]}  Nb6 {[%clk 0:00:32]} 29. Bd3 {[%clk 0:00:45]}  Nc8 {[%clk 0:00:31]} 30. Nxc8 {[%clk 0:00:32]}  Qxc8 {[%clk 0:00:31]} 31. exf6 {[%clk 0:00:32]}  Rxf6 {[%clk 0:00:32]} 32. Qxa5 {[%clk 0:00:28]}  Rff7 {[%clk 0:00:23]} 33. Rf2 {[%clk 0:00:25]}  Bd5 {[%clk 0:00:20]} 34. Qb4 {[%clk 0:00:20]}  Rb7 {[%clk 0:00:20]} 35. Qd4 {[%clk 0:00:20]}  Rbc7 {[%clk 0:00:18]} 36. f5 {[%clk 0:00:20]}  Rf6 {[%clk 0:00:05]} 37. Rfe2 {[%clk 0:00:18]}  Re7 {[%clk 0:00:02]} 38. fxe6 {[%clk 0:00:17]}  Ba8 {[%clk 0:00:01]} 39. Qd6 {[%clk 0:00:11]}  Re8 {[%clk 0:00:01]} 40. Qd4 {[%clk 0:00:08]}  Qc7 {[%clk 0:00:01]} 41. Rf2 {[%clk 0:00:08]}  Qb7 {[%clk 0:00:01]} 42. Be4 {[%clk 0:00:06]}  Qb8 {[%clk 0:00:01]} 43. Rxf6 {[%clk 0:00:05]}  gxf6 {[%clk 0:00:01]} 44. Bxa8 {[%clk 0:00:05]}  Qxa8 {[%clk 0:00:02]} 45. Qxf6 {[%clk 0:00:06]}  Qa5 {[%clk 0:00:02]} 46. Qg6+ {[%clk 0:00:05]}  Kh8 {[%clk 0:00:02]} 47. Qxe8+ {[%clk 0:00:05]}  Kh7 {[%clk 0:00:02]} 48. Qf7+ {[%clk 0:00:05]}  Kh8 {[%clk 0:00:03]} 49. Rd1 {[%clk 0:00:05]}  Qb6 {[%clk 0:00:02]} 50. Qf6+ {[%clk 0:00:05]}  Kg8 {[%clk 0:00:02]} 51. Rd8+ {[%clk 0:00:05]}  Kh7 {[%clk 0:00:03]} 52. Rh8# {[%clk 0:00:05]} 1-0


[Site "https://www.chess.com"]

[Event "Titled Tuesday Blitz November 01 Late 2022"]
[White "Silva Lucena, Cristian"]
[Black "Kodinets, Konstantin L."]
[WhiteFideId "2232588"]
[BlackFideId "4122011"]
[WhiteElo "2223"]
[BlackElo "2447"]
[Result "0-1"]
[Round "05"]
[TimeControl "180+1"]
[Date "2022.11.02"]
[WhiteClock "0:00:46"]
[BlackClock "0:00:07"]

1. e4 {[%clk 0:03:00]}  e5 {[%clk 0:02:49]} 2. Nf3 {[%clk 0:03:00]}  d6 {[%clk 0:02:49]} 3. d4 {[%clk 0:03:00]}  exd4 {[%clk 0:02:49]} 4. Nxd4 {[%clk 0:03:00]}  Nf6 {[%clk 0:02:50]} 5. Nc3 {[%clk 0:03:00]}  Be7 {[%clk 0:02:50]} 6. g3 {[%clk 0:03:00]}  O-O {[%clk 0:02:51]} 7. Bg2 {[%clk 0:03:00]}  Re8 {[%clk 0:02:52]} 8. O-O {[%clk 0:03:00]}  Nbd7 {[%clk 0:02:52]} 9. h3 {[%clk 0:02:59]}  Ne5 {[%clk 0:02:52]} 10. b3 {[%clk 0:02:58]}  c6 {[%clk 0:02:52]} 11. f4 {[%clk 0:02:57]}  Ng6 {[%clk 0:02:52]} 12. Kh2 {[%clk 0:02:57]}  Bf8 {[%clk 0:02:52]} 13. Bb2 {[%clk 0:02:56]}  Qc7 {[%clk 0:02:47]} 14. Qd3 {[%clk 0:02:56]}  Bd7 {[%clk 0:02:47]} 15. Rad1 {[%clk 0:02:56]}  Rad8 {[%clk 0:02:47]} 16. a4 {[%clk 0:02:50]}  h5 {[%clk 0:02:43]} 17. Kh1 {[%clk 0:02:44]}  Qc8 {[%clk 0:02:42]} 18. Kh2 {[%clk 0:02:43]}  Qc7 {[%clk 0:02:42]} 19. Nce2 {[%clk 0:02:38]}  d5 {[%clk 0:02:38]} 20. e5 {[%clk 0:02:38]}  Ne4 {[%clk 0:02:37]} 21. c4 {[%clk 0:02:32]}  h4 {[%clk 0:02:32]} 22. g4 {[%clk 0:02:32]}  Rxe5 {[%clk 0:02:32]} 23. fxe5 {[%clk 0:02:30]}  Nxe5 {[%clk 0:02:32]} 24. Bxe4 {[%clk 0:01:49]}  Nxg4+ {[%clk 0:02:10]} 25. Kg2 {[%clk 0:01:43]}  Qh2+ {[%clk 0:02:10]} 26. Kf3 {[%clk 0:01:44]}  Qxh3+ {[%clk 0:01:23]} 27. Ng3 {[%clk 0:01:14]}  Qxg3+ {[%clk 0:01:11]} 28. Ke2 {[%clk 0:01:14]}  Qh2+ {[%clk 0:01:07]} 29. Ke1 {[%clk 0:01:14]}  dxe4 {[%clk 0:00:59]} 30. Qc3 {[%clk 0:00:56]}  Bd6 {[%clk 0:00:22]} 31. Rd2 {[%clk 0:00:52]}  Qg3+ {[%clk 0:00:16]} 32. Qxg3 {[%clk 0:00:51]}  Bxg3+ {[%clk 0:00:16]} 33. Kd1 {[%clk 0:00:50]}  Ne3+ {[%clk 0:00:15]} 34. Ke2 {[%clk 0:00:49]}  Nxf1 {[%clk 0:00:15]} 35. Kxf1 {[%clk 0:00:49]}  Bh3+ {[%clk 0:00:14]} 36. Kg1 {[%clk 0:00:50]}  c5 {[%clk 0:00:12]} 37. Nf3 {[%clk 0:00:48]}  Rxd2 {[%clk 0:00:11]} 38. Nxd2 {[%clk 0:00:48]}  e3 {[%clk 0:00:11]} 39. Nf3 {[%clk 0:00:47]}  Bg4 {[%clk 0:00:07]} 40. Kg2 {[%clk 0:00:47]}  e2 {[%clk 0:00:06]} 41. Bc3 {[%clk 0:00:46]}  Bxf3+ {[%clk 0:00:07]} 42. Kxf3 {[%clk 0:00:46]}  e1=Q {[%clk 0:00:07]} 0-1


[Site "https://www.chess.com"]

[Event "Titled Tuesday Blitz November 01 Late 2022"]
[White "Sjugirov, Sanan"]
[Black "Firouzja, Alireza"]
[WhiteFideId "4189302"]
[BlackFideId "12573981"]
[WhiteElo "2609"]
[BlackElo "2903"]
[Result "0-1"]
[Round "05"]
[TimeControl "180+1"]
[Date "2022.11.01"]
[WhiteClock "0:00:08"]
[BlackClock "0:01:17"]

1. Nf3 {[%clk 0:03:00]}  d5 {[%clk 0:02:54]} 2. g3 {[%clk 0:03:00]}  Nf6 {[%clk 0:02:52]} 3. Bg2 {[%clk 0:03:01]}  g6 {[%clk 0:02:49]} 4. O-O {[%clk 0:03:00]}  c5 {[%clk 0:02:49]} 5. c4 {[%clk 0:02:52]}  dxc4 {[%clk 0:02:43]} 6. Qa4+ {[%clk 0:02:41]}  Nbd7 {[%clk 0:02:42]} 7. Qxc4 {[%clk 0:02:34]}  Bg7 {[%clk 0:02:38]} 8. d3 {[%clk 0:02:30]}  O-O {[%clk 0:02:37]} 9. a4 {[%clk 0:02:17]}  b6 {[%clk 0:02:36]} 10. Ng5 {[%clk 0:01:51]}  Rb8 {[%clk 0:02:31]} 11. Bf4 {[%clk 0:01:50]}  e5 {[%clk 0:02:30]} 12. Bd2 {[%clk 0:01:49]}  Bb7 {[%clk 0:02:27]} 13. Bxb7 {[%clk 0:01:49]}  Rxb7 {[%clk 0:02:28]} 14. Nc3 {[%clk 0:01:49]}  h6 {[%clk 0:02:29]} 15. Nge4 {[%clk 0:01:47]}  Ne8 {[%clk 0:02:22]} 16. a5 {[%clk 0:01:35]}  Nc7 {[%clk 0:02:14]} 17. Nd6 {[%clk 0:01:27]}  Rb8 {[%clk 0:02:14]} 18. a6 {[%clk 0:01:22]}  Nf6 {[%clk 0:02:12]} 19. Ndb5 {[%clk 0:01:13]}  Nxb5 {[%clk 0:02:13]} 20. Nxb5 {[%clk 0:01:14]}  Qd7 {[%clk 0:02:13]} 21. Bc3 {[%clk 0:01:05]}  Ne8 {[%clk 0:02:12]} 22. f4 {[%clk 0:00:37]}  exf4 {[%clk 0:02:11]} 23. Qxf4 {[%clk 0:00:31]}  Rd8 {[%clk 0:02:07]} 24. Bxg7 {[%clk 0:00:29]}  Nxg7 {[%clk 0:02:06]} 25. Nc3 {[%clk 0:00:27]}  Nf5 {[%clk 0:02:01]} 26. Rf2 {[%clk 0:00:22]}  Qd4 {[%clk 0:01:59]} 27. Nb5 {[%clk 0:00:16]}  Qxf4 {[%clk 0:01:58]} 28. Rxf4 {[%clk 0:00:17]}  Rd7 {[%clk 0:01:59]} 29. Raf1 {[%clk 0:00:15]}  Re8 {[%clk 0:01:59]} 30. R1f2 {[%clk 0:00:15]}  Ne3 {[%clk 0:01:59]} 31. Nc3 {[%clk 0:00:11]}  f5 {[%clk 0:01:54]} 32. h3 {[%clk 0:00:12]}  Kg7 {[%clk 0:01:47]} 33. b4 {[%clk 0:00:08]}  g5 {[%clk 0:01:45]} 34. Rxf5 {[%clk 0:00:08]}  cxb4 {[%clk 0:01:42]} 35. Ne4 {[%clk 0:00:07]}  Nxf5 {[%clk 0:01:38]} 36. Rxf5 {[%clk 0:00:08]}  Rd4 {[%clk 0:01:17]} 37. Rb5 {[%clk 0:00:07]}  Rdxe4 {[%clk 0:01:14]} 38. dxe4 {[%clk 0:00:08]}  Rxe4 {[%clk 0:01:14]} 39. Kf2 {[%clk 0:00:09]}  Kf6 {[%clk 0:01:15]} 40. Kf3 {[%clk 0:00:09]}  Rc4 {[%clk 0:01:16]} 41. e3 {[%clk 0:00:08]}  Ke6 {[%clk 0:01:16]} 42. g4 {[%clk 0:00:07]}  Kd6 {[%clk 0:01:16]} 43. Ke2 {[%clk 0:00:07]}  Kc6 {[%clk 0:01:17]} 44. Rf5 {[%clk 0:00:08]}  b3 {[%clk 0:01:17]} 45. Kd3 {[%clk 0:00:08]}  b2 {[%clk 0:01:17]} 0-1


[Site "https://www.chess.com"]

[Event "Titled Tuesday Blitz November 01 Late 2022"]
[White "Spitzl, Vinzent"]
[Black "Fernandez Hernandez, Gerardo"]
[WhiteFideId "12901253"]
[BlackFideId "2207400"]
[WhiteElo "2247"]
[BlackElo "2230"]
[Result "0-1"]
[Round "05"]
[TimeControl "180+1"]
[Date "2022.11.02"]
[WhiteClock "0:00:21"]
[BlackClock "0:00:03"]

1. d4 {[%clk 0:03:00]}  Nf6 {[%clk 0:02:58]} 2. Nf3 {[%clk 0:03:00]}  g6 {[%clk 0:02:58]} 3. c4 {[%clk 0:02:58]}  Bg7 {[%clk 0:02:58]} 4. e3 {[%clk 0:02:59]}  O-O {[%clk 0:02:58]} 5. Be2 {[%clk 0:02:59]}  d6 {[%clk 0:02:59]} 6. Nc3 {[%clk 0:02:56]}  Nbd7 {[%clk 0:02:59]} 7. O-O {[%clk 0:02:56]}  e5 {[%clk 0:02:58]} 8. b4 {[%clk 0:02:55]}  e4 {[%clk 0:02:53]} 9. Nd2 {[%clk 0:02:55]}  Re8 {[%clk 0:02:53]} 10. a4 {[%clk 0:02:53]}  h5 {[%clk 0:02:45]} 11. Qc2 {[%clk 0:02:11]}  Qe7 {[%clk 0:02:43]} 12. Ba3 {[%clk 0:02:11]}  Nf8 {[%clk 0:02:30]} 13. c5 {[%clk 0:02:11]}  d5 {[%clk 0:02:27]} 14. c6 {[%clk 0:02:11]}  b6 {[%clk 0:02:06]} 15. b5 {[%clk 0:02:07]}  Qe6 {[%clk 0:02:01]} 16. Bxf8 {[%clk 0:02:07]}  Bxf8 {[%clk 0:01:54]} 17. a5 {[%clk 0:02:07]}  Rb8 {[%clk 0:01:41]} 18. axb6 {[%clk 0:02:07]}  axb6 {[%clk 0:01:41]} 19. Ra7 {[%clk 0:01:58]}  Bd6 {[%clk 0:01:40]} 20. Rfa1 {[%clk 0:01:57]}  Qf5 {[%clk 0:01:34]} 21. Ra8 {[%clk 0:01:51]}  Rxa8 {[%clk 0:01:27]} 22. Rxa8 {[%clk 0:01:52]}  Be6 {[%clk 0:01:14]} 23. Rxe8+ {[%clk 0:01:50]}  Nxe8 {[%clk 0:01:14]} 24. f3 {[%clk 0:01:50]}  Qg5 {[%clk 0:00:50]} 25. Nf1 {[%clk 0:01:44]}  Nf6 {[%clk 0:00:26]} 26. fxe4 {[%clk 0:01:22]}  dxe4 {[%clk 0:00:25]} 27. Nxe4 {[%clk 0:01:11]}  Bxh2+ {[%clk 0:00:06]} 28. Kxh2 {[%clk 0:01:01]}  Qh4+ {[%clk 0:00:05]} 29. Kg1 {[%clk 0:01:01]}  Nxe4 {[%clk 0:00:05]} 30. Bf3 {[%clk 0:01:00]}  Ng5 {[%clk 0:00:03]} 31. Qf2 {[%clk 0:00:56]}  Qxf2+ {[%clk 0:00:03]} 32. Kxf2 {[%clk 0:00:56]}  Nxf3 {[%clk 0:00:03]} 33. gxf3 {[%clk 0:00:52]}  Bc4 {[%clk 0:00:04]} 34. Nd2 {[%clk 0:00:51]}  Bxb5 {[%clk 0:00:04]} 35. d5 {[%clk 0:00:52]}  Kf8 {[%clk 0:00:04]} 36. e4 {[%clk 0:00:51]}  Ke7 {[%clk 0:00:04]} 37. Ke3 {[%clk 0:00:51]}  f6 {[%clk 0:00:03]} 38. f4 {[%clk 0:00:50]}  Kd6 {[%clk 0:00:03]} 39. Kd4 {[%clk 0:00:51]}  Bxc6 {[%clk 0:00:01]} 40. e5+ {[%clk 0:00:48]}  fxe5+ {[%clk 0:00:02]} 41. fxe5+ {[%clk 0:00:48]}  Kd7 {[%clk 0:00:03]} 42. dxc6+ {[%clk 0:00:45]}  Kxc6 {[%clk 0:00:04]} 43. Ne4 {[%clk 0:00:44]}  h4 {[%clk 0:00:04]} 44. Ng5 {[%clk 0:00:44]}  b5 {[%clk 0:00:03]} 45. Nh3 {[%clk 0:00:41]}  b4 {[%clk 0:00:03]} 46. Kc4 {[%clk 0:00:41]}  b3 {[%clk 0:00:04]} 47. Kxb3 {[%clk 0:00:40]}  Kd5 {[%clk 0:00:05]} 48. Kc3 {[%clk 0:00:39]}  Kxe5 {[%clk 0:00:05]} 49. Kd3 {[%clk 0:00:39]}  Kf5 {[%clk 0:00:05]} 50. Ke3 {[%clk 0:00:39]}  g5 {[%clk 0:00:06]} 51. Nf2 {[%clk 0:00:37]}  g4 {[%clk 0:00:05]} 52. Nd3 {[%clk 0:00:38]}  h3 {[%clk 0:00:04]} 53. Kf2 {[%clk 0:00:38]}  Ke4 {[%clk 0:00:03]} 54. Nc5+ {[%clk 0:00:36]}  Kd5 {[%clk 0:00:03]} 55. Nd3 {[%clk 0:00:35]}  c5 {[%clk 0:00:03]} 56. Kg3 {[%clk 0:00:35]}  c4 {[%clk 0:00:03]} 57. Nf2 {[%clk 0:00:36]}  Kd4 {[%clk 0:00:03]} 58. Nxg4 {[%clk 0:00:36]}  c3 {[%clk 0:00:03]} 59. Nh6 {[%clk 0:00:17]}  c2 {[%clk 0:00:02]} 60. Nf5+ {[%clk 0:00:18]}  Kd3 {[%clk 0:00:02]} 61. Ne3 {[%clk 0:00:19]}  Kxe3 {[%clk 0:00:01]} 62. Kxh3 {[%clk 0:00:20]}  c1=Q {[%clk 0:00:02]} 63. Kg4 {[%clk 0:00:20]}  Qf1 {[%clk 0:00:02]} 64. Kg5 {[%clk 0:00:21]}  Qf4+ {[%clk 0:00:03]} 0-1


[Site "https://www.chess.com"]

[Event "Titled Tuesday Blitz November 01 Late 2022"]
[White "Suleymanli, Aydin"]
[Black "Leitao, Rafael"]
[WhiteFideId "13413937"]
[BlackFideId "2101246"]
[WhiteElo "2481"]
[BlackElo "2609"]
[Result "1-0"]
[Round "05"]
[TimeControl "180+1"]
[Date "2022.11.01"]
[WhiteClock "0:00:05"]
[BlackClock "0:00:12"]

1. e4 {[%clk 0:03:00]}  c5 {[%clk 0:02:56]} 2. Nf3 {[%clk 0:02:58]}  d6 {[%clk 0:02:56]} 3. Bc4 {[%clk 0:02:55]}  Nf6 {[%clk 0:02:55]} 4. d3 {[%clk 0:02:53]}  Nc6 {[%clk 0:02:49]} 5. O-O {[%clk 0:02:50]}  g6 {[%clk 0:02:49]} 6. h3 {[%clk 0:02:36]}  Bg7 {[%clk 0:02:49]} 7. a4 {[%clk 0:02:35]}  O-O {[%clk 0:02:48]} 8. c3 {[%clk 0:02:29]}  b6 {[%clk 0:02:40]} 9. Bf4 {[%clk 0:02:19]}  Bb7 {[%clk 0:02:37]} 10. Nbd2 {[%clk 0:02:16]}  d5 {[%clk 0:02:06]} 11. exd5 {[%clk 0:02:14]}  Nxd5 {[%clk 0:02:05]} 12. Bh2 {[%clk 0:02:09]}  Qd7 {[%clk 0:01:53]} 13. Re1 {[%clk 0:02:09]}  Rad8 {[%clk 0:01:52]} 14. Ne4 {[%clk 0:02:06]}  h6 {[%clk 0:01:34]} 15. Qe2 {[%clk 0:01:56]}  e5 {[%clk 0:01:29]} 16. Rad1 {[%clk 0:01:54]}  Rfe8 {[%clk 0:01:29]} 17. Kh1 {[%clk 0:01:36]}  Kh7 {[%clk 0:01:29]} 18. Bg3 {[%clk 0:01:29]}  f5 {[%clk 0:01:27]} 19. Bh4 {[%clk 0:01:26]}  Nf4 {[%clk 0:01:13]} 20. Qf1 {[%clk 0:01:01]}  fxe4 {[%clk 0:00:59]} 21. dxe4 {[%clk 0:00:57]}  Qc7 {[%clk 0:00:57]} 22. Bxd8 {[%clk 0:00:54]}  Rxd8 {[%clk 0:00:51]} 23. Rxd8 {[%clk 0:00:53]}  Qxd8 {[%clk 0:00:52]} 24. g3 {[%clk 0:00:52]}  Nh5 {[%clk 0:00:51]} 25. Rd1 {[%clk 0:00:50]}  Qc8 {[%clk 0:00:51]} 26. Kh2 {[%clk 0:00:46]}  Nf6 {[%clk 0:00:51]} 27. Qe2 {[%clk 0:00:41]}  Qc7 {[%clk 0:00:45]} 28. Bd5 {[%clk 0:00:26]}  Nxd5 {[%clk 0:00:45]} 29. exd5 {[%clk 0:00:27]}  Nd8 {[%clk 0:00:45]} 30. Qd3 {[%clk 0:00:10]}  Nf7 {[%clk 0:00:43]} 31. d6 {[%clk 0:00:03]}  Qc6 {[%clk 0:00:37]} 32. d7 {[%clk 0:00:02]}  Qxf3 {[%clk 0:00:16]} 33. Qxf3 {[%clk 0:00:02]}  Bxf3 {[%clk 0:00:16]} 34. d8=Q {[%clk 0:00:02]}  Nxd8 {[%clk 0:00:16]} 35. Rxd8 {[%clk 0:00:03]}  Bc6 {[%clk 0:00:15]} 36. a5 {[%clk 0:00:02]}  bxa5 {[%clk 0:00:15]} 37. Rc8 {[%clk 0:00:03]}  Bd7 {[%clk 0:00:14]} 38. Rxc5 {[%clk 0:00:03]}  a4 {[%clk 0:00:15]} 39. Rc7 {[%clk 0:00:04]}  Be6 {[%clk 0:00:14]} 40. Rxa7 {[%clk 0:00:04]}  Bb3 {[%clk 0:00:14]} 41. Kg2 {[%clk 0:00:04]}  e4 {[%clk 0:00:14]} 42. Kf1 {[%clk 0:00:03]}  g5 {[%clk 0:00:13]} 43. Ke2 {[%clk 0:00:04]}  Kg6 {[%clk 0:00:13]} 44. Ke3 {[%clk 0:00:04]}  Bd5 {[%clk 0:00:12]} 45. Ra6+ {[%clk 0:00:04]}  Kf7 {[%clk 0:00:12]} 46. Rxa4 {[%clk 0:00:04]}  Be5 {[%clk 0:00:12]} 47. Ra7+ {[%clk 0:00:05]}  Kf6 {[%clk 0:00:12]} 48. Ra6+ {[%clk 0:00:05]}  Kg7 {[%clk 0:00:12]} 49. Ra5 {[%clk 0:00:05]} 1-0


[Site "https://www.chess.com"]